Workbook

Sheet Лист1
F3: Утверждаю
E4: Директор ______________Шарифьянов В. Ф.
F5: 02.09.2022
A6: Меню
A7: для обучающихся 1-4 классов ОВЗ
A8: № рец. | B8: Прием пищи, наименование блюда | D8: Масса порции | E8: цена | F8: Пищевые вещества (г) | I8: Энерге- тическая ценность (ккал)
F9: Б | G9: Ж | H9: У
A10: 1 | B10: 2 | D10: 3 | F10: 4 | G10: 5 | H10: 6 | I10: 7
A11: Завтрак
A12: 181.39 | B12: Каша рисовая молочная вязкая с маслом | D12: 180/5 | E12: 17.5 | F12: 4.6 | G12: 9.96 | H12: 32.25 | I12: 237.47
A13: 289 | B13: какао с молоком | D13: 200 | E13: 10.48 | F13: 3.6 | G13: 0.45 | H13: 24.75 | I13: 117
A14: 420.02 | B14: Хлеб пшеничный обогащенный витаминами для детского питания | D14: 50 | E14: 2.73 | F14: 3.2 | G14: 0.4 | H14: 22 | I14: 104
A15: 27.01 | B15: Сыр (порция) | D15: 9 | E15: 6.7
A16: 476.01 | B16: Кисломолочный продукт для детского питания | D16: 100 | E16: 9.4 | F16: 3.2 | G16: 3.2 | H16: 4.5 | I16: 62
B17: печенье | D17: 30 | E17: 12.95
A18: Итого за Завтрак | F18: =SUM(F12:F17) -> 14.6 | G18: =SUM(G12:G17) -> 14.01 | H18: =SUM(H12:H17) -> 83.5 | I18: =SUM(I12:I17) -> 520.47
A19: Обед | J19: 59.76
A20: 2.1 | B20: салат из белокочанной капусты с морковью | D20: 60 | E20: 6.06 | F20: 0.68 | G20: 3.11 | H20: 5.95 | I20: 54.96
A21: 54.47 | B21: Рассольник ленинградский | D21: 250 | E21: 9.15 | F21: 5.91 | G21: 4.55 | H21: 19.49 | I21: 142.91
A22: 502.53 | B22: Биточки из мяса птицы с томатным соусом (филе) | D22: 60\30 | E22: 35.92 | F22: 9.95 | G22: 9.48 | H22: 8.57 | I22: 159.02
A23: 138.06 | B23: Картофельное пюре | D23: 180 | E23: 6.16 | F23: 5.82 | G23: 4.31 | H23: 37.08 | I23: 210.5
A24: 283 | B24: Чай с сахаром | D24: 200 | E24: 1.88 | H24: 9.98 | I24: 39.9
A25: 420.02 | B25: Хлеб пшеничный обогащенный витаминами для детского питания | D25: 50 | E25: 2.73 | F25: 3.2 | G25: 0.4 | H25: 22 | I25: 104
A26: Итого за Обед | F26: 28.28 | G26: 22.92 | H26: 124.49 | I26: 816.13
A27: Итого за день | E27: =SUM(E12:E26) -> 121.66 | F27: 42.25 | G27: 43.15 | H27: 187.45 | I27: 1309.04
J28: 121.66
B29: Повар: __________________/Абзалова Н.К./
F32: Утверждаю
E33: Директор ______________Шарифьянов В. Ф.
F34: 02.09.2022
B35: Меню
A36: для обучающихся 5-11 классов ОВЗ
A37: № рец. | B37: Прием пищи, наименование блюда | D37: Масса порции | E37: цена | F37: Пищевые вещества (г) | I37: Энерге- тическая ценность (ккал)
F38: Б | G38: Ж | H38: У
A39: 1 | B39: 2 | D39: 3 | F39: 4 | G39: 5 | H39: 6 | I39: 7
A40: Завтрак
A41: 181.39 | B41: Каша рисовая молочная вязкая с маслом | D41: 180/10 | E41: 18.89 | F41: 4.6 | G41: 9.96 | H41: 32.25 | I41: 237.47
A42: 289 | B42: какао с молоком | D42: 200 | E42: 11.93 | H42: 9.98 | I42: 39.9
A43: 420.02 | B43: Хлеб пшеничный обогащенный витаминами для детского питания | D43: 60 | E43: 3.6 | F43: 3.2 | G43: 0.4 | H43: 22 | I43: 104
A44: 27.01 | B44: Сыр (порция) | D44: 12 | E44: 8.16
A45: 476.01 | B45: Кисломолочный продукт для детского питания | D45: 100 | E45: 10 | F45: 3.2 | G45: 3.2 | H45: 4.5 | I45: 62
B46: печенье | D46: 22 | E46: 14.63
A47: Итого за Завтрак | F47: =SUM(F41:F45) -> 11 | G47: =SUM(G41:G45) -> 13.56 | H47: =SUM(H41:H45) -> 68.73 | I47: =SUM(I41:I45) -> 443.37
A48: Обед | J48: 67.21
A49: 2.1 | B49: салат из белокочанной капусты с морковью | D49: 100 | E49: 16.36 | F49: 0.68 | G49: 3.11 | H49: 5.95 | I49: 54.96
A50: 54.47 | B50: Рассольник ленинградский | D50: 250 | E50: 10.17 | F50: 5.91 | G50: 4.55 | H50: 19.49 | I50: 142.91
A51: 502.53 | B51: Биточки из мяса птицы с томатным соусом (филе) | D51: 100/30 | E51: 32.8 | F51: 9.95 | G51: 9.48 | H51: 8.57 | I51: 159.02
A52: 138.06 | B52: Картофельное пюре | D52: 250\10 | E52: 9.29 | F52: 5.82 | G52: 4.31 | H52: 37.08 | I52: 210.5
A53: 283 | B53: Чай с сахаром | D53: 200 | E53: 1.93 | H53: 9.98 | I53: 39.9
A54: 420.02 | B54: Хлеб пшеничный обогащенный витаминами для детского питания | D54: 60 | E54: 3.6 | F54: 3.2 | G54: 0.4 | H54: 22 | I54: 104
A55: Итого за Обед | E55: =SUM(E41:E54) -> 141.36 | F55: 28.28 | G55: 22.92 | H55: 124.49 | I55: 816.13
J56: 141.36
B58: Повар:_____________________Абзалова Н. К.

Sheet Лист2
E2: Утверждаю
D3: Директор ______________Шарифьянов В. Ф.
E4: 25.03.2021
C5: Меню
A6: для обучающихся 1-4 классов
A7: № рец. | B7: Прием пищи, наименование блюда | D7: Масса порции | E7: цена | F7: Пищевые вещества (г) | I7: Энерге- тическая ценность (ккал)
F8: Б | G8: Ж | H8: У
A9: 1 | B9: 2 | D9: 3 | F9: 4 | G9: 5 | H9: 6 | I9: 7
A10: Завтрак
A11: 502.53 | B11: Биточки из мяса птицы с томатным соусом (филе) | D11: 70/30 | E11: 24.63 | F11: 9.95 | G11: 9.48 | H11: 8.57 | I11: 159.02
A12: 181.39 | B12: Каша "Дружба" молочная вязкая с маслом | D12: 180/8 | E12: 15.21 | F12: 4.6 | G12: 9.96 | H12: 32.25 | I12: 237.47
A13: 283 | B13: Чай с сахаром с лимоном | D13: 200 | E13: 3.12 | H13: 9.98 | I13: 39.9
A14: 420.02 | B14: Хлеб пшеничный обогащенный витаминами для детского питания | D14: 50 | E14: 3 | F14: 3.2 | G14: 0.4 | H14: 22 | I14: 104
A15: 476.01 | B15: Кисломолочный продукт для детского питания | D15: 100 | E15: 9.4 | F15: 3.2 | G15: 3.2 | H15: 4.5 | I15: 62
B16: печенье | D16: 22 | E16: 4.4
A17: Итого за Завтрак | E17: =SUM(E11:E16) -> 59.76 | F17: =SUM(F11:F16) -> 20.95 | G17: =SUM(G11:G16) -> 23.04 | H17: =SUM(H11:H16) -> 77.3 | I17: =SUM(I11:I16) -> 602.39 | J17: 59.76
B19: Повар: __________________/Абзалова Н.К./
F22: Утверждаю
E23: Директор ______________Шарифьянов В. Ф.
F24: 25.03.2021
B25: Меню
A26: для обучающихся 5-11 классов
A27: № рец. | B27: Прием пищи, наименование блюда | D27: Масса порции | E27: цена | F27: Пищевые вещества (г) | I27: Энерге- тическая ценность (ккал)
F28: Б | G28: Ж | H28: У
A29: 1 | B29: 2 | D29: 3 | F29: 4 | G29: 5 | H29: 6 | I29: 7
A30: Завтрак
A31: 502.53 | B31: Биточки из мяса птицы с томатным соусом (филе) | D31: 100/30 | E31: 30.79 | F31: 9.95 | G31: 9.48 | H31: 8.57 | I31: 159.02
A32: 181.39 | B32: Каша "Дружба"молочная вязкая с маслом | D32: 180/10 | E32: 16.5 | F32: 4.6 | G32: 9.96 | H32: 32.25 | I32: 237.47
A33: 283 | B33: Чай с сахаром с лимоном | D33: 200 | E33: 3.12 | H33: 9.98 | I33: 39.9
A34: 420.02 | B34: Хлеб пшеничный обогащенный витаминами для детского питания | D34: 50 | E34: 3 | F34: 3.2 | G34: 0.4 | H34: 22 | I34: 104
A35: 476.01 | B35: Кисломолочный продукт для детского питания | D35: 100 | E35: 9.4 | F35: 3.2 | G35: 3.2 | H35: 4.5 | I35: 62
B36: печенье | D36: 22 | E36: 4.4
A37: Итого за Завтрак | E37: =SUM(E31:E36) -> 67.21 | F37: =SUM(F32:F35) -> 11 | G37: =SUM(G32:G35) -> 13.56 | H37: =SUM(H32:H35) -> 68.73 | I37: =SUM(I32:I35) -> 443.37
A39: Повар: __________________/Абзалова Н.К./
